fUSD/lending_fUSD_20241119
["ID","MTS","AMOUNT","RATE_DAILY","PERIOD"]
[342597670,1731985862924,-500.0,9.896e-05,2]
[342597671,1731985862933,-1289.0,9.896e-05,2]
[342597672,1731985862943,-1289.0,9.896e-05,2]
[342597673,1731985862956,-500.0,9.896e-05,2]
[342597674,1731985862966,-500.0,9.896e-05,2]
[342597675,1731985862975,-344.7013147,9.896e-05,2]
[342597676,1731985862985,-500.0,9.896e-05,2]
[342597677,1731985862995,-500.0,9.896e-05,2]
[342597678,1731985863004,-500.0,9.896e-05,2]
[342597679,1731985863014,-500.0,9.896e-05,2]
[342597680,1731985863025,-502.50657783,9.896e-05,2]
[342597681,1731985863035,-500.0,9.896e-05,2]
[342597682,1731985863045,-500.0,9.896e-05,2]
[342597683,1731985863055,-644.32740669,9.896e-05,2]
[342597684,1731985863066,-576.62,9.896e-05,2]
[342597685,1731985863075,-576.62,9.896e-05,2]
[342597686,1731985863085,-500.0,9.896e-05,2]
[342597687,1731985863095,-500.0,9.896e-05,2]
[342597688,1731985863105,-500.0,9.896e-05,2]
[342597689,1731985863114,-500.0,9.896e-05,2]
[342597690,1731985863124,-500.0,9.896e-05,2]
[342597691,1731985863134,-500.0,9.896e-05,2]
[342597692,1731985863143,-500.0,9.896e-05,2]
[342597693,1731985863153,-500.0,9.896e-05,2]
[342597694,1731985863163,-500.0,9.896e-05,2]
[342597695,1731985863172,-598.58933983,9.896e-05,2]
[342597696,1731985863182,-500.0,9.896e-05,2]
[342597697,1731985863192,-500.0,9.896e-05,2]
[342597698,1731985863204,-500.0,9.896e-05,2]
[342597699,1731985863214,-504.65827542,9.896e-05,2]
[342597700,1731985863224,-500.0,9.896e-05,2]
[342597701,1731985863234,-500.0,9.896e-05,2]
[342597702,1731985863244,-507.73617257,9.896e-05,2]
[342597703,1731985863255,-502.9599897,9.896e-05,2]
[342597704,1731985863266,-500.0,9.896e-05,2]
[342597705,1731985863276,-500.0,9.896e-05,2]
[342597706,1731985863285,-500.0,9.896e-05,2]
[342597707,1731985863295,-500.0,9.896e-05,2]
[342597708,1731985863305,-500.0,9.896e-05,2]
[342597709,1731985863316,-500.0,9.896e-05,2]
[342597710,1731985863326,-500.0,9.896e-05,2]
[342597711,1731985863336,-500.0,9.896e-05,2]
[342597712,1731985863346,-365.87783561,9.896e-05,2]
[342597713,1731985863356,-178.77067874,9.896e-05,2]
[342597714,1731985863366,-500.0,9.896e-05,2]
[342597715,1731985863375,-500.0,9.896e-05,2]
[342597716,1731985863385,-500.0,9.896e-05,2]
[342597717,1731985863394,-500.0,9.896e-05,2]
[342597718,1731985863404,-500.0,9.896e-05,2]
[342597719,1731985863414,-500.0,9.896e-05,2]
[342597720,1731985863424,-488.46963477,9.896e-05,2]
[342597721,1731985863434,-554.76,9.896e-05,2]
[342597722,1731985863444,-554.76,9.896e-05,2]
[342597723,1731985863459,-500.0,9.896e-05,2]
[342597724,1731985863469,-500.0,9.896e-05,2]
[342597725,1731985863479,-500.0,9.896e-05,2]
[342597726,1731985863489,-500.0,9.896e-05,2]
[342597727,1731985863499,-398.13,9.896e-05,2]
[342597728,1731985863509,-500.0,9.896e-05,2]
[342597729,1731985863519,-500.0,9.896e-05,2]
[342597730,1731985863529,-500.0,9.896e-05,2]
[342597731,1731985863539,-500.0,9.896e-05,2]
[342597732,1731985863549,-500.0,9.896e-05,2]
[342597733,1731985863558,-500.0,9.896e-05,2]
[342597734,1731985863568,-500.0,9.896e-05,2]
[342597735,1731985863578,-500.0,9.896e-05,2]
[342597736,1731985863587,-455.67,9.896e-05,2]
[342597737,1731985863597,-504.71012795,9.896e-05,2]
[342597738,1731985863607,-500.0,9.896e-05,2]
[342597739,1731985863617,-500.0,9.896e-05,2]
[342597740,1731985863627,-500.0,9.896e-05,2]
[342597741,1731985863637,-500.0,9.896e-05,2]
[342597742,1731985863647,-500.0,9.896e-05,2]
[342597743,1731985863657,-205.33,9.896e-05,2]
[342597744,1731985863667,-500.0,9.896e-05,2]
[342597745,1731985863677,-500.0,9.896e-05,2]
[342597746,1731985863686,-500.0,9.896e-05,2]
[342597747,1731985863699,-500.0,9.896e-05,2]
[342597748,1731985863713,-500.0,9.896e-05,2]
[342597749,1731985863723,-500.0,9.896e-05,2]
[342597750,1731985863732,-500.0,9.896e-05,2]
[342597751,1731985863741,-500.0,9.896e-05,2]
[342597752,1731985863751,-214.14910446,9.896e-05,2]
[342597753,1731985863761,-500.0,9.896e-05,2]
[342597754,1731985863771,-500.0,9.896e-05,2]
[342597755,1731985863781,-500.0,9.896e-05,2]
[342597756,1731985863790,-500.0,9.896e-05,2]
[342597757,1731985863800,-522.96,9.896e-05,2]
[342597758,1731985863810,-500.0,9.896e-05,2]
[342597759,1731985863820,-500.0,9.896e-05,2]
[342597760,1731985863830,-604.66,9.896e-05,2]
[342597761,1731985863840,-500.0,9.896e-05,2]
[342597762,1731985863849,-500.0,9.896e-05,2]
[342597763,1731985863859,-1454.08,9.896e-05,2]
[342597764,1731985863868,-754.62,9.896e-05,2]
[342597765,1731985863878,-500.0,9.896e-05,2]
[342597766,1731985863887,-500.0,9.896e-05,2]
[342597767,1731985863896,-213.07,9.896e-05,2]
[342597768,1731985863906,-538.73938216,9.896e-05,2]
[342597769,1731985863915,-902.19,9.896e-05,2]
[342597770,1731985863926,-988.06,9.896e-05,2]
[342597771,1731985863936,-500.0,9.896e-05,2]
[342597772,1731985863950,-500.0,9.896e-05,2]
[342597773,1731985863959,-500.0,9.896e-05,2]
[342597774,1731985863969,-500.0,9.896e-05,2]
[342597775,1731985863978,-500.0,9.896e-05,2]
[342597776,1731985863990,-500.0,9.896e-05,2]
[342597777,1731985864000,-762.58,9.896e-05,2]
[342597778,1731985864009,-500.0,9.896e-05,2]
[342597779,1731985864019,-500.0,9.896e-05,2]
[342597780,1731985864032,-500.0,9.896e-05,2]
[342597781,1731985864042,-274.78554302,9.896e-05,2]
[342597782,1731985864052,-500.0,9.896e-05,2]
[342597783,1731985864062,-500.0,9.896e-05,2]
[342597784,1731985864072,-500.0,9.896e-05,2]
[342597785,1731985864083,-500.0,9.896e-05,2]
[342597786,1731985864093,-500.0,9.896e-05,2]
[342597787,1731985864104,-500.0,9.896e-05,2]
[342597788,1731985864114,-531.2,9.896e-05,2]
[342597789,1731985864124,-500.0,9.896e-05,2]
[342597790,1731985864134,-500.0,9.896e-05,2]
[342597791,1731985864144,-501.36,9.896e-05,2]
[342597792,1731985864155,-332.6681953,9.896e-05,2]
[342597793,1731985864164,-1131.99,9.896e-05,2]
[342597794,1731985864175,-500.0,9.896e-05,2]
[342597795,1731985864185,-1673.21,9.896e-05,2]
[342597796,1731985864195,-773.1,9.896e-05,2]
[342597797,1731985864205,-500.0,9.896e-05,2]
[342597798,1731985864215,-500.0,9.896e-05,2]
[342597799,1731985864225,-1472.23,9.896e-05,2]
[342597800,1731985864235,-606.02,9.896e-05,2]
[342597801,1731985864244,-500.0,9.896e-05,2]
[342597802,1731985864254,-500.0,9.896e-05,2]
[342597803,1731985864263,-500.0,9.897e-05,2]
[342597804,1731985864272,-500.0,9.897e-05,2]
[342597805,1731985864282,-501.14280723,9.897e-05,2]
[342597806,1731985864292,-500.0,9.897e-05,2]
[342597807,1731985864301,-500.0,9.897e-05,2]
[342597808,1731985864311,-500.0,9.897e-05,2]
[342597809,1731985864321,-500.0,9.897e-05,2]
[342597810,1731985864331,-500.0,9.897e-05,2]
[342597811,1731985864341,-500.0,9.897e-05,2]
[342597812,1731985864351,-500.0,9.897e-05,2]
[342597813,1731985864362,-500.0,9.897e-05,2]
[342597814,1731985864372,-500.0,9.897e-05,2]
[342597815,1731985864381,-680.81,9.897e-05,2]
[342597816,1731985864391,-500.0,9.897e-05,2]
[342597817,1731985864400,-500.0,9.897e-05,2]
[342597818,1731985864410,-801.32,9.897e-05,2]
[342597819,1731985864420,-500.0,9.897e-05,2]
[342597820,1731985864430,-184.46949102,9.897e-05,2]
[342597821,1731985864440,-500.0,9.897e-05,2]
[342597822,1731985864452,-533.47,9.897e-05,2]
[342597823,1731985864462,-1289.0,9.897e-05,2]
[342597824,1731985864472,-500.0,9.897e-05,2]
[342597825,1731985864482,-500.0,9.897e-05,2]
[342597826,1731985864492,-500.0,9.897e-05,2]
[342597827,1731985864502,-500.0,9.897e-05,2]
[342597828,1731985864511,-500.0,9.897e-05,2]
[342597829,1731985864522,-500.0,9.897e-05,2]
[342597830,1731985864531,-523.2970702,9.897e-05,2]
[342597831,1731985864541,-500.0,9.897e-05,2]
[342597832,1731985864550,-500.0,9.897e-05,2]
[342597833,1731985864560,-500.0,9.897e-05,2]
[342597834,1731985864570,-500.0,9.897e-05,2]
[342597835,1731985864580,-374.30652402,9.897e-05,2]
[342597836,1731985864590,-500.0,9.897e-05,2]
[342597837,1731985864599,-542.61,9.897e-05,2]
[342597838,1731985864609,-500.0,9.897e-05,2]
[342597839,1731985864618,-500.0,9.897e-05,2]
[342597840,1731985864628,-500.0,9.897e-05,2]
[342597841,1731985864637,-576.62,9.897e-05,2]
[342597842,1731985864647,-500.0,9.897e-05,2]
[342597843,1731985864656,-500.0,9.897e-05,2]
[342597844,1731985864666,-506.47036116,9.897e-05,2]
[342597845,1731985864735,-500.0,9.897e-05,2]
[342597846,1731985864744,-500.0,9.897e-05,2]
[342597847,1731985864754,-694.31,9.897e-05,2]
[342597848,1731985864763,-500.0,9.897e-05,2]
[342597849,1731985864773,-500.0,9.897e-05,2]
[342597850,1731985864782,-500.0,9.897e-05,2]
[342597851,1731985864792,-370.13408473,9.897e-05,2]
[342597852,1731985864801,-500.0,9.897e-05,2]
[342597853,1731985864811,-500.0,9.897e-05,2]
[342597854,1731985864820,-500.0,9.897e-05,2]
[342597855,1731985864830,-500.0,9.897e-05,2]
[342597856,1731985864839,-500.0,9.897e-05,2]
[342597857,1731985864850,-583.32727021,9.897e-05,2]
[342597858,1731985864859,-500.0,9.897e-05,2]
[342597859,1731985864868,-500.0,9.897e-05,2]
[342597860,1731985864878,-500.0,9.897e-05,2]
[342597861,1731985864887,-500.0,9.897e-05,2]
[342597862,1731985864896,-641.46089552,9.897e-05,2]
[342597863,1731985864905,-502.3156708,9.897e-05,2]
[342597864,1731985864914,-500.0,9.897e-05,2]
[342597865,1731985864924,-503.64936794,9.897e-05,2]
[342597866,1731985864933,-500.0,9.897e-05,2]
[342597867,1731985864944,-500.0,9.897e-05,2]
[342597868,1731985864955,-500.0,9.897e-05,2]
[342597869,1731985864965,-500.0,9.897e-05,2]
[342597870,1731985864974,-505.58330672,9.897e-05,2]
[342597871,1731985864983,-500.0,9.897e-05,2]
[342597872,1731985864992,-500.0,9.897e-05,2]
[342597873,1731985865002,-550.05720918,9.897e-05,2]
[342597874,1731985865012,-288.07674231,9.897e-05,2]
[342597875,1731985865022,-517.27152317,9.897e-05,2]
[342597876,1731985865033,-500.0,9.897e-05,2]
[342597877,1731985865043,-500.0,9.897e-05,2]
[342597878,1731985865052,-504.50710982,9.897e-05,2]
[342597879,1731985865062,-500.0,9.897e-05,2]
[342597880,1731985865071,-156.66565696,9.897e-05,2]
[342597881,1731985865081,-500.0,9.897e-05,2]
[342597882,1731985865091,-503.16212071,9.897e-05,2]
[342597883,1731985865100,-500.0,9.897e-05,2]
[342597884,1731985865110,-500.0,9.897e-05,2]
[342597885,1731985865119,-500.0,9.897e-05,2]
[342597886,1731985865129,-500.0,9.897e-05,2]
[342597887,1731985865138,-500.0,9.897e-05,2]
[342597888,1731985865148,-501.41608034,9.897e-05,2]
[342597889,1731985865158,-500.0,9.897e-05,2]
[342597890,1731985865168,-500.0,9.897e-05,2]
[342597891,1731985865178,-500.0,9.897e-05,2]
[342597892,1731985865187,-500.0,9.897e-05,2]
[342597893,1731985865198,-500.0,9.897e-05,2]
[342597894,1731985865208,-500.0,9.897e-05,2]
[342597895,1731985865217,-577.76,9.897e-05,2]
[342597896,1731985865227,-500.0,9.897e-05,2]
[342597897,1731985865237,-554.76,9.897e-05,2]
[342597898,1731985865246,-498.36490391,9.897e-05,2]
[342597899,1731985865256,-500.0,9.897e-05,2]
[342597900,1731985865266,-500.0,9.897e-05,2]
[342597901,1731985865275,-500.0,9.897e-05,2]
[342597902,1731985865284,-1026.33,9.897e-05,2]
[342597903,1731985865293,-500.0,9.897e-05,2]
[342597904,1731985865302,-500.0,9.897e-05,2]
[342597905,1731985865312,-500.0,9.897e-05,2]
[342597906,1731985865322,-500.0,9.897e-05,2]
[342597907,1731985865332,-500.0,9.897e-05,2]
[342597908,1731985865342,-500.0,9.897e-05,2]
[342597909,1731985865351,-500.0,9.897e-05,2]
[342597910,1731985865362,-500.0,9.897e-05,2]
[342597911,1731985865373,-505.09755384,9.897e-05,2]
[342597912,1731985865383,-554.57,9.897e-05,2]
[342597913,1731985865393,-500.0,9.897e-05,2]
[342597914,1731985865403,-500.0,9.897e-05,2]
[342597915,1731985865412,-670.17,9.897e-05,2]
[342597916,1731985865422,-617.09939962,9.897e-05,2]
[342597917,1731985865432,-500.0,9.897e-05,2]
[342597918,1731985865442,-840.41,9.897e-05,2]
[342597919,1731985865452,-500.0,9.897e-05,2]
[342597920,1731985865461,-500.0,9.897e-05,2]
[342597921,1731985865471,-500.0,9.897e-05,2]
[342597922,1731985865480,-500.0,9.897e-05,2]
[342597923,1731985865489,-500.0,9.897e-05,2]
[342597924,1731985865498,-500.0,9.897e-05,2]
[342597925,1731985865507,-400.12,9.897e-05,2]
[342597926,1731985865517,-500.0,9.897e-05,2]
[342597927,1731985865526,-686.72,9.897e-05,2]
[342597928,1731985865535,-500.0,9.897e-05,2]
[342597929,1731985865544,-500.0,9.897e-05,2]
[342597930,1731985865553,-500.0,9.897e-05,2]
[342597931,1731985865562,-500.0,9.897e-05,2]
[342597932,1731985865571,-569.65,9.897e-05,2]
[342597933,1731985865580,-500.0,9.897e-05,2]
[342597934,1731985865590,-500.0,9.897e-05,2]
[342597935,1731985865599,-500.0,9.897e-05,2]
[342597936,1731985865608,-500.0,9.897e-05,2]
[342597937,1731985865617,-513.55,9.897e-05,2]
[342597938,1731985865627,-447.42955677,9.897e-05,2]
[342597939,1731985865636,-303.36,9.897e-05,2]
[342597940,1731985865645,-500.0,9.897e-05,2]
[342597941,1731985865655,-500.0,9.897e-05,2]
[342597942,1731985865665,-500.0,9.897e-05,2]
[342597943,1731985865675,-500.0,9.897e-05,2]
[342597944,1731985865685,-500.0,9.897e-05,2]
[342597945,1731985865696,-500.0,9.897e-05,2]
[342597946,1731985865705,-212.24,9.897e-05,2]
[342597947,1731985865715,-500.0,9.897e-05,2]
[342597948,1731985865723,-500.0,9.897e-05,2]
[342597949,1731985865733,-500.0,9.897e-05,2]
[342597950,1731985865742,-500.0,9.897e-05,2]
[342597951,1731985865751,-500.0,9.897e-05,2]
[342597952,1731985865760,-500.0,9.897e-05,2]
[342597953,1731985865770,-500.16136916,9.897e-05,2]
[342597954,1731985865780,-500.0,9.897e-05,2]
[342597955,1731985865790,-812.36,9.897e-05,2]
[342597956,1731985865800,-500.0,9.897e-05,2]
[342597957,1731985865811,-500.0,9.897e-05,2]
[342597958,1731985865821,-500.0,9.897e-05,2]
[342597959,1731985865830,-500.0,9.897e-05,2]
[342597960,1731985865839,-200.55161151,9.897e-05,2]
[342597961,1731985865849,-500.0,9.897e-05,2]
[342597962,1731985865858,-379.21746572,9.897e-05,2]
[342597963,1731985865868,-500.0,9.897e-05,2]
[342597964,1731985865878,-599.49,9.897e-05,2]
[342597965,1731985865888,-500.0,9.897e-05,2]
[342597966,1731985865897,-500.0,9.897e-05,2]
[342597967,1731985865906,-1000.0,9.897e-05,2]
[342597968,1731985865915,-500.0,9.897e-05,2]
[342597969,1731985865924,-317.4,9.897e-05,2]
[342597970,1731985865933,-500.0,9.897e-05,2]
[342597971,1731985865942,-500.0,9.897e-05,2]
[342597972,1731985865955,-500.0,9.897e-05,2]
[342597973,1731985865965,-500.0,9.897e-05,2]
[342597974,1731985865975,-500.0,9.897e-05,2]
[342597975,1731985865986,-500.0,9.897e-05,2]
[342597976,1731985865995,-500.0,9.897e-05,2]
[342597977,1731985866006,-500.0,9.897e-05,2]
[342597978,1731985866015,-500.0,9.897e-05,2]
[342597979,1731985866025,-450.08,9.897e-05,2]
[342597980,1731985866038,-500.0,9.897e-05,2]
[342597981,1731985866048,-565.1,9.897e-05,2]
[342597982,1731985866058,-500.0,9.897e-05,2]
[342597983,1731985866067,-793.75,9.897e-05,2]
[342597984,1731985866077,-500.0,9.897e-05,2]
[342597985,1731985866087,-500.0,9.897e-05,2]
[342597986,1731985866095,-500.0,9.897e-05,2]
[342597987,1731985866105,-500.0,9.897e-05,2]
[342597988,1731985866114,-500.0,9.897e-05,2]
[342597989,1731985866124,-500.0,9.897e-05,2]
[342597990,1731985866133,-1041.22,9.897e-05,2]
[342597991,1731985866143,-166.96823581,9.897e-05,2]
[342597992,1731985866152,-500.0,9.897e-05,2]
[342597993,1731985866162,-500.0,9.897e-05,2]
[342597994,1731985866171,-500.0,9.897e-05,2]
[342597995,1731985866181,-500.0,9.897e-05,2]
[342597996,1731985866191,-500.0,9.897e-05,2]
[342597997,1731985866204,-500.0,9.897e-05,2]
[342597998,1731985866213,-500.0,9.897e-05,2]
[342597999,1731985866223,-500.0,9.897e-05,2]
[342598000,1731985866232,-500.0,9.897e-05,2]
[342598001,1731985866242,-500.0,9.897e-05,2]
[342598002,1731985866251,-525.55,9.897e-05,2]
[342598003,1731985866261,-928.78,9.897e-05,2]
[342598004,1731985866271,-319.01830956,9.897e-05,2]
[342598005,1731985866280,-500.0,9.897e-05,2]
[342598006,1731985866290,-500.0,9.897e-05,2]
[342598007,1731985866300,-500.0,9.897e-05,2]
[342598008,1731985866309,-500.0,9.897e-05,2]
[342598009,1731985866319,-950.03,9.897e-05,2]
[342598010,1731985866328,-1834.06,9.897e-05,2]
[342598011,1731985866337,-500.0,9.897e-05,2]
[342598012,1731985866347,-500.0,9.897e-05,2]
[342598013,1731985866356,-500.0,9.897e-05,2]
[342598014,1731985866365,-500.0,9.897e-05,2]
[342598015,1731985866375,-500.0,9.897e-05,2]
[342598016,1731985866384,-500.0,9.897e-05,2]
[342598017,1731985866393,-500.0,9.897e-05,2]
[342598018,1731985866403,-500.0,9.897e-05,2]
[342598019,1731985866413,-506.74,9.897e-05,2]
[342598020,1731985866425,-424.05828392,9.897e-05,2]
[342598021,1731985866434,-500.0,9.897e-05,2]
[342598022,1731985866443,-500.0,9.897e-05,2]
[342598023,1731985866457,-8347.3637,9.898e-05,2]
[342598024,1731985866467,-164.94960313,9.899e-05,2]
[342598025,1731985866476,-150.0,9.9e-05,2]
[342598026,1731985866485,-150.0,9.903e-05,2]
[342598027,1731985866495,-150.0,9.905e-05,2]
[342598028,1731985866504,-150.0,9.907e-05,2]
[342598029,1731985866513,-454.01659542,9.91e-05,2]
[342598030,1731985866523,-433.25,9.91e-05,2]
[342598031,1731985866532,-150.0,9.911e-05,2]
[342598032,1731985866542,-150.0,9.915e-05,2]
[342598033,1731985866551,-150.0,9.918e-05,2]
[342598034,1731985866560,-150.0,9.919e-05,2]
[342598035,1731985866570,-500.0,9.92e-05,2]
[342598036,1731985866579,-150.0,9.928e-05,2]
[342598037,1731985866589,-150.0,9.93e-05,2]
[342598038,1731985866598,-150.0,9.931e-05,2]
[342598039,1731985866608,-150.0,9.939e-05,2]
[342598040,1731985866617,-151.88493693,9.941e-05,2]
[342598041,1731985866627,-150.0,9.943e-05,2]
[342598042,1731985866636,-1500.0,9.945e-05,2]
[342598043,1731985866645,-150.0,9.946e-05,2]
[342598044,1731985866655,-150.0,9.946e-05,2]
[342598045,1731985866665,-150.0,9.946e-05,2]
[342598046,1731985866674,-5800.0,9.949e-05,2]
[342598047,1731985866683,-824.8,9.95e-05,2]
[342598048,1731985866692,-237.08212284,9.951e-05,2]
[342598049,1731985866705,-256.45893858,9.956e-05,2]
[342598050,1731985866716,-150.0,9.956e-05,2]
[342598051,1731985866725,-5800.0,9.958e-05,2]
[342598052,1731985866735,-150.0,9.958e-05,2]
[342598053,1731985866745,-150.0,9.962e-05,2]
[342598054,1731985866755,-5800.0,9.966e-05,2]
[342598055,1731985866764,-150.0,9.971e-05,2]
[342598056,1731985866774,-150.0,9.982e-05,2]
[342598057,1731985866783,-167.23521933,9.983e-05,2]
[342598058,1731985866793,-675.05583478,9.988e-05,2]
[342598059,1731985866802,-899.0339623,9.988e-05,2]
[342598060,1731985866811,-578.8640681,9.988e-05,2]
[342598061,1731985866821,-369.5526734,9.988e-05,2]
[342598062,1731985866830,-750.4203951,9.988e-05,2]
[342598063,1731985866839,-3059.2104705,9.988e-05,2]
[342598064,1731985866849,-570.1298605,9.993e-05,2]
[342598065,1731985866858,-561.3956528,9.993e-05,2]
[342598066,1731985866867,-363.9766669,9.993e-05,2]
[342598067,1731985866876,-358.4006605,9.993e-05,2]
[342598068,1731985866886,-736.2356193,9.993e-05,2]
[342598069,1731985866895,-722.0508436,9.993e-05,2]
[342598070,1731985866904,-707.8660678,9.993e-05,2]
[342598071,1731985866914,-3001.3839311,9.993e-05,2]
[342598072,1731985866924,-2943.5573918,9.993e-05,2]
[342598073,1731985866933,-2885.7308524,9.993e-05,2]
[342598074,1731985866943,-500.0,9.994e-05,2]
[342598075,1731985866961,-500.0,9.994e-05,2]
[342598076,1731985866971,-500.0,9.994e-05,2]
[342598077,1731985866981,-500.0,9.994e-05,2]
[342598078,1731985866990,-500.0,9.994e-05,2]
[342598079,1731985867002,-554.89,9.994e-05,2]
[342598080,1731985867011,-952.01,9.994e-05,2]
[342598081,1731985867020,-500.0,9.994e-05,2]
[342598082,1731985867031,-500.0,9.994e-05,2]
[342598083,1731985867041,-361.15255962,9.994e-05,2]
[342598084,1731985867050,-500.0,9.994e-05,2]
[342598085,1731985867059,-165.92,9.995e-05,2]
[342598086,1731985867068,-500.0,9.995e-05,2]
[342598087,1731985867078,-801.32,9.995e-05,2]
[342598088,1731985867087,-1289.0,9.995e-05,2]
[342598089,1731985867096,-500.0,9.995e-05,2]
[342598090,1731985867105,-500.0,9.995e-05,2]
[342598091,1731985867114,-576.62,9.995e-05,2]
[342598092,1731985867124,-500.0,9.995e-05,2]
[342598093,1731985867133,-500.0,9.995e-05,2]
[342598094,1731985867143,-500.0,9.995e-05,2]
[342598095,1731985867153,-500.0,9.995e-05,2]
[342598096,1731985867163,-554.76,9.995e-05,2]
[342598097,1731985867172,-500.0,9.995e-05,2]
[342598098,1731985867181,-500.0,9.995e-05,2]
[342598099,1731985867190,-500.0,9.995e-05,2]
[342598100,1731985867202,-500.0,9.995e-05,2]
[342598101,1731985867211,-500.0,9.996e-05,2]
[342598102,1731985867220,-500.0,9.996e-05,2]
[342598103,1731985867229,-500.0,9.996e-05,2]
[342598104,1731985867238,-500.0,9.996e-05,2]
[342598105,1731985867247,-502.29730269,9.996e-05,2]
[342598106,1731985867256,-500.0,9.996e-05,2]
[342598107,1731985867266,-500.0,9.996e-05,2]
[342598108,1731985867275,-500.0,9.996e-05,2]
[342598109,1731985867285,-500.0,9.996e-05,2]
[342598110,1731985867294,-500.0,9.996e-05,2]
[342598111,1731985867303,-195.53865963,9.996e-05,2]
[342598112,1731985867312,-680.81,9.996e-05,2]
[342598113,1731985867322,-500.0,9.996e-05,2]
[342598114,1731985867332,-801.32,9.996e-05,2]
[342598115,1731985867342,-601.91621425,9.996e-05,2]
[342598116,1731985867351,-500.0,9.996e-05,2]
[342598117,1731985867359,-1289.0,9.996e-05,2]
[342598118,1731985867369,-500.0,9.996e-05,2]
[342598119,1731985867378,-500.0,9.996e-05,2]
[342598120,1731985867387,-500.0,9.996e-05,2]
[342598121,1731985867396,-500.0,9.996e-05,2]
[342598122,1731985867406,-500.0,9.996e-05,2]
[342598123,1731985867415,-500.0,9.996e-05,2]
[342598124,1731985867424,-576.62,9.996e-05,2]
[342598125,1731985867434,-321.54052704,9.996e-05,2]
[342598126,1731985867444,-500.0,9.996e-05,2]
[342598127,1731985867454,-500.0,9.996e-05,2]
[342598128,1731985867463,-500.0,9.996e-05,2]
[342598129,1731985867472,-500.0,9.996e-05,2]
[342598130,1731985867481,-366.32717882,9.996e-05,2]
[342598131,1731985867490,-500.0,9.996e-05,2]
[342598132,1731985867499,-500.0,9.996e-05,2]
[342598133,1731985867508,-500.0,9.996e-05,2]
[342598134,1731985867517,-553.51037245,9.996e-05,2]
[342598135,1731985867526,-500.0,9.996e-05,2]
[342598136,1731985867535,-500.0,9.996e-05,2]
[342598137,1731985867544,-500.0,9.996e-05,2]
[342598138,1731985867553,-500.0,9.996e-05,2]
[342598139,1731985867562,-500.0,9.996e-05,2]
[342598140,1731985867572,-500.0,9.996e-05,2]
[342598141,1731985867581,-371.84,9.996e-05,2]
[342598142,1731985867590,-500.0,9.996e-05,2]
[342598143,1731985867599,-500.0,9.996e-05,2]
[342598144,1731985867608,-502.84565263,9.996e-05,2]
[342598145,1731985867618,-500.0,9.996e-05,2]
[342598146,1731985867627,-500.0,9.996e-05,2]
[342598147,1731985867637,-601.68069207,9.996e-05,2]
[342598148,1731985867647,-500.0,9.996e-05,2]
[342598149,1731985867656,-500.0,9.996e-05,2]
[342598150,1731985867666,-500.0,9.996e-05,2]
[342598151,1731985867675,-500.0,9.996e-05,2]
[342598152,1731985867684,-500.0,9.996e-05,2]
[342598153,1731985867693,-500.0,9.996e-05,2]
[342598154,1731985867704,-500.0,9.996e-05,2]
[342598155,1731985867713,-554.76,9.996e-05,2]
[342598156,1731985867723,-500.0,9.996e-05,2]
[342598157,1731985867732,-500.0,9.996e-05,2]
[342598158,1731985867741,-500.0,9.996e-05,2]
[342598159,1731985867750,-500.0,9.996e-05,2]
[342598160,1731985867760,-629.13,9.996e-05,2]
[342598161,1731985867769,-500.0,9.996e-05,2]
[342598162,1731985867778,-500.0,9.996e-05,2]
[342598163,1731985867787,-1093.83,9.996e-05,2]
[342598164,1731985867797,-500.0,9.996e-05,2]
[342598165,1731985867806,-541.23,9.996e-05,2]
[342598166,1731985867815,-500.0,9.996e-05,2]
[342598167,1731985867825,-500.0,9.996e-05,2]
[342598168,1731985867834,-500.0,9.996e-05,2]
[342598169,1731985867843,-500.0,9.996e-05,2]